bitfinex/quotes_BTCUSD_20240906
["timestamp","ask_amount","ask_price","bid_price","bid_amount"]
[1725585440122,0.91576089,56311.0,56310.0,0.0001]
[1725585440332,0.888926,56311.0,56310.0,0.0001]
[1725585440537,0.887926,56311.0,56310.0,0.0001]
[1725585440952,0.887925,56311.0,56310.0,0.001]
[1725585441181,2.067212,56311.0,56310.0,0.001]
[1725585441397,2.071812,56311.0,56310.0,0.001]
[1725585441605,2.169812,56311.0,56310.0,0.001]
[1725585441849,1.76082,56311.0,56310.0,0.001]
[1725585442066,1.667117,56311.0,56310.0,0.001]
[1725585442277,0.88802,56305.0,56304.0,0.001628]
[1725585442481,2.487751,56305.0,56304.0,0.001628]
[1725585442692,1.70754,56305.0,56304.0,0.001628]
[1725585442900,1.446074,56305.0,56304.0,0.001628]
[1725585443127,1.090866,56305.0,56304.0,0.001628]
[1725585443334,0.88802,56305.0,56304.0,0.001628]
[1725585443750,0.88802,56305.0,56304.0,0.004628]
[1725585443976,0.91585671,56305.0,56304.0,0.008628]
[1725585444197,0.93252959,56305.0,56304.0,0.008628]
[1725585444632,0.93252944,56305.0,56304.0,0.008628]
[1725585445475,1.76634644,56305.0,56304.0,0.008628]
[1725585445949,1.53071844,56305.0,56304.0,0.001628]
[1725585446165,1.53071844,56305.0,56304.0,0.005628]
[1725585446380,1.53071844,56305.0,56304.0,0.008628]
[1725585446584,2.45190944,56305.0,56304.0,0.008628]
[1725585447057,1.81678944,56305.0,56304.0,0.008628]
[1725585447288,0.93252944,56305.0,56304.0,0.008628]
[1725585447532,0.57732144,56305.0,56304.0,0.008728]
[1725585447755,0.04450944,56305.0,56304.0,0.264035]
[1725585448207,0.04450944,56305.0,56304.0,0.27281237]
[1725585448208,0.01667273,56305.0,56304.0,0.27281237]
[1725585448932,0.01667273,56305.0,56304.0,0.62802637]
[1725585449155,0.177585,56312.0,56307.0,0.177595]
[1725585449385,0.01667241,56311.0,56310.0,0.177585]
[1725585449617,0.01667241,56311.0,56310.0,0.532764]
[1725585449842,0.01667241,56311.0,56310.0,0.610564]
[1725585450071,0.01667241,56311.0,56310.0,0.08657656]
[1725585450303,0.01667241,56311.0,56310.0,0.26416456]
[1725585450526,0.01667241,56311.0,56310.0,0.61934056]
[1725585450758,0.01667241,56311.0,56310.0,0.97451656]
[1725585451044,0.19425741,56311.0,56310.0,0.08657656]
[1725585451278,0.90459741,56311.0,56310.0,0.00887656]
[1725585451501,0.90459741,56311.0,56310.0,0.0001]
[1725585452197,0.177588,56310.0,56309.0,0.0001]
[1725585452405,0.19426041,56310.0,56309.0,0.0001]
[1725585452635,0.90461452,56310.0,56309.0,0.0001]
[1725585452871,0.532783,56308.0,56307.0,0.0777]
[1725585453092,0.887972,56308.0,56307.0,0.0777]
[1725585453315,0.90464652,56308.0,56307.0,0.0778]
[1725585454179,0.90464652,56308.0,56307.0,0.0848]
[1725585454607,0.54945752,56308.0,56307.0,0.09355572]
[1725585455109,0.57729112,56308.0,56307.0,0.09355572]
[1725585455583,0.04450812,56308.0,56307.0,0.09855572]
[1725585455818,0.04450812,56308.0,56307.0,0.63134772]
[1725585456042,0.355153,56314.0,56313.0,0.0001]
[1725585456043,0.532726,56314.0,56313.0,0.0001]
[1725585456264,0.93238495,56314.0,56313.0,0.0001]
[1725585456500,0.57723395,56314.0,56313.0,0.0001]
[1725585456944,0.57723395,56314.0,56313.0,0.00885453]
[1725585457164,0.02783334,56314.0,56313.0,0.0001]
[1725585457378,0.02783334,56314.0,56313.0,0.14925453]
[1725585457379,0.06118236,56314.0,56313.0,0.14925453]
[1725585457588,0.23875736,56314.0,56313.0,0.1405]
[1725585457807,0.59390836,56314.0,56313.0,0.14925453]
[1725585458448,0.21092402,56314.0,56313.0,0.14925453]
[1725585458685,0.03334902,56314.0,56313.0,0.14925453]
[1725585458894,0.03334902,56314.0,56313.0,0.68198953]
[1725585459107,0.03334902,56314.0,56313.0,1.03714653]
[1725585459526,0.03334902,56314.0,56313.0,0.14925453]
[1725585459750,0.56607502,56314.0,56313.0,0.08755453]
[1725585460004,0.92122602,56314.0,56313.0,0.08755453]
[1725585460224,0.56607502,56314.0,56313.0,0.0778]
[1725585460490,0.56607502,56314.0,56313.0,0.08652101]
[1725585460703,0.92122602,56314.0,56313.0,0.08652101]
[1725585460929,0.92122602,56314.0,56313.0,0.0838]
[1725585461153,0.92122602,56314.0,56313.0,0.0878]
[1725585461391,0.92122602,56314.0,56313.0,0.0101]
[1725585461642,0.92122602,56314.0,56313.0,0.01872101]
[1725585461643,1.89021425,56314.0,56313.0,0.01872101]
[1725585461875,1.89021425,56314.0,56313.0,0.01]
[1725585462336,1.89021425,56314.0,56313.0,0.006]
[1725585462579,0.710416,56305.0,56304.0,0.001728]
[1725585462795,0.90469452,56305.0,56304.0,0.001728]
[1725585463229,0.90469452,56305.0,56304.0,0.01043297]
[1725585463453,0.90469452,56305.0,56304.0,0.001728]
[1725585464097,0.90469452,56305.0,56304.0,0.006728]
[1725585464309,0.90469452,56305.0,56304.0,0.001728]
[1725585465819,0.90469452,56305.0,56304.0,0.007728]
[1725585466038,0.90469452,56305.0,56304.0,0.01643297]
[1725585466260,0.90469452,56305.0,56304.0,0.014728]
[1725585466593,0.90469452,56305.0,56304.0,0.01743297]
[1725585466705,0.90469452,56305.0,56304.0,0.01043297]
[1725585466953,1.243228,56305.0,56304.0,0.02043297]
[1725585467212,1.243228,56305.0,56304.0,0.01633297]
[1725585467430,1.243228,56305.0,56304.0,0.001628]
[1725585467431,2.74263214,56305.0,56304.0,0.001628]
[1725585467650,2.74263214,56305.0,56304.0,0.004628]
[1725585467903,2.43233014,56305.0,56304.0,0.008628]
[1725585468140,1.47977114,56305.0,56304.0,0.008628]
[1725585468588,1.25990914,56305.0,56304.0,0.008628]
[1725585470190,0.90469731,56305.0,56304.0,0.008628]
[1725585470847,0.90469731,56305.0,56304.0,0.008728]
[1725585471077,0.01667731,56305.0,56304.0,0.682049]
[1725585471344,0.01667731,56305.0,56304.0,0.69075397]
[1725585471599,0.177595,56308.0,56307.0,0.0001]
[1725585471834,0.19427153,56308.0,56307.0,0.0001]
[1725585472042,0.22210686,56308.0,56307.0,0.00890093]
[1725585472259,0.22210686,56308.0,56307.0,0.177697]
[1725585472260,0.04451186,56308.0,56307.0,0.177697]
[1725585472486,0.04451186,56308.0,56307.0,0.61919293]
[1725585472704,0.0445119,56308.0,56307.0,0.61919293]
[1725585472970,0.0445119,56308.0,56307.0,0.62019293]
[1725585473635,0.04451052,56308.0,56307.0,0.97538793]
[1725585473854,0.04451052,56308.0,56307.0,1.03868793]
[1725585474550,0.04451052,56308.0,56307.0,0.68349293]
[1725585476722,0.04451052,56308.0,56307.0,0.15070093]
[1725585476932,0.91580733,56308.0,56307.0,0.08740093]
[1725585477145,0.93248236,56308.0,56307.0,0.08740093]
[1725585477362,0.57729336,56308.0,56307.0,0.08740093]
[1725585477594,0.22210436,56308.0,56307.0,0.08740093]
[1725585477824,0.04451036,56308.0,56307.0,0.08740093]
[1725585478040,0.22210436,56308.0,56307.0,0.08740093]
[1725585478478,0.19426903,56308.0,56307.0,0.08740093]
[1725585478685,0.54945803,56308.0,56307.0,0.08740093]
[1725585479096,0.90464703,56308.0,56307.0,0.08740093]
[1725585479311,0.54945803,56308.0,56307.0,0.08740093]
[1725585479952,0.90464703,56308.0,56307.0,0.08740093]
[1725585480384,0.54945806,56308.0,56307.0,0.08740093]
[1725585480639,0.01667506,56308.0,56307.0,0.08740093]
[1725585480851,0.01667506,56308.0,56307.0,0.15070093]
[1725585481064,0.01667506,56308.0,56307.0,0.497095]
[1725585481299,0.01667506,56308.0,56307.0,0.68346419]
[1725585481514,0.01667506,56308.0,56307.0,1.06165919]
[1725585481738,0.01667506,56308.0,56307.0,1.41685419]
[1725585482476,0.01667506,56308.0,56307.0,1.41585419]
[1725585482693,0.01667506,56308.0,56307.0,1.77204919]
[1725585483113,0.000814,56315.0,56314.0,0.887877]
[1725585483330,0.000814,56315.0,56314.0,1.388328]
[1725585483545,0.000814,56315.0,56314.0,1.39703063]
[1725585484875,0.000814,56315.0,56314.0,1.40003063]
[1725585485524,0.000814,56315.0,56314.0,1.40403063]
[1725585485763,0.000814,56315.0,56314.0,1.42703063]
[1725585486632,0.000814,56315.0,56314.0,1.07187963]
[1725585487137,0.000814,56315.0,56314.0,1.42703063]
[1725585487138,0.01749932,56315.0,56314.0,1.42703063]
[1725585487562,0.01749932,56315.0,56314.0,1.42003063]
[1725585487766,0.01749932,56315.0,56314.0,1.43403063]
[1725585487980,0.01749932,56315.0,56314.0,1.44703063]
[1725585488412,0.01749932,56315.0,56314.0,1.42003063]
[1725585488618,0.01749932,56315.0,56314.0,1.44503063]
[1725585489070,0.01749932,56315.0,56314.0,0.17900263]
[1725585489323,0.01749932,56315.0,56314.0,0.35657763]
[1725585490222,0.19507132,56315.0,56314.0,0.11570263]
[1725585490425,0.90536132,56315.0,56314.0,0.11570263]
[1725585490632,0.90536132,56315.0,56314.0,0.03380263]
[1725585491059,0.91871312,56315.0,56314.0,0.03380263]
[1725585491279,0.56356812,56315.0,56314.0,0.03380263]
[1725585491499,0.20842312,56315.0,56314.0,0.03380263]
[1725585491981,0.1917378,56315.0,56314.0,0.03380263]
[1725585492224,0.56357154,56315.0,56314.0,0.03380263]
[1725585492457,0.91871708,56315.0,56314.0,0.03370263]
[1725585492928,0.91871708,56315.0,56314.0,0.025]
[1725585492929,0.91871641,56315.0,56314.0,0.025]
[1725585493186,0.3451018,56315.0,56314.0,0.025]
[1725585493418,0.3451018,56315.0,56314.0,0.0251]
[1725585493419,0.03004041,56315.0,56314.0,0.0251]
[1725585493704,0.03004041,56315.0,56314.0,0.03376106]
[1725585493938,0.03004041,56315.0,56314.0,0.17896106]
[1725585494150,0.91790241,56315.0,56314.0,0.03376106]
[1725585494372,0.56275741,56315.0,56314.0,0.025]
[1725585494594,0.56275741,56315.0,56314.0,0.0251]
[1725585494820,0.56275741,56315.0,56314.0,0.03376182]
[1725585495068,0.56275531,56315.0,56314.0,0.03376182]
[1725585495283,0.54940396,56315.0,56314.0,0.03376182]
[1725585495515,0.56275351,56315.0,56314.0,0.03376182]
[1725585496192,0.04672296,56315.0,56314.0,0.03376182]
[1725585496414,0.57943996,56315.0,56314.0,0.03376182]
[1725585496644,0.93458496,56315.0,56314.0,0.03366182]
[1725585496872,1.28972996,56315.0,56314.0,0.03366182]
[1725585497099,2.29682196,56315.0,56314.0,0.025]
[1725585498256,2.28094799,56315.0,56314.0,0.025]
[1725585498482,2.29763309,56315.0,56314.0,0.025]
[1725585499591,1.29054109,56315.0,56314.0,0.025]
[1725585500072,0.93539609,56315.0,56314.0,0.0251]
[1725585500952,0.93539609,56315.0,56314.0,0.0337832]
[1725585501633,0.92204955,56315.0,56314.0,0.0337832]
[1725585501852,0.93540004,56315.0,56314.0,0.0337832]
[1725585502989,0.93540004,56315.0,56314.0,0.0251]
[1725585503452,0.68449448,56315.0,56314.0,0.0251]
[1725585503672,0.68449448,56315.0,56314.0,0.0337832]
[1725585503673,0.86206648,56315.0,56314.0,0.0337832]
[1725585503899,0.47354793,56315.0,56314.0,0.1111832]
[1725585504108,0.4935744,56315.0,56314.0,0.1776832]
[1725585504322,0.8487194,56315.0,56314.0,0.1776832]
[1725585504533,0.50692519,56315.0,56314.0,0.1776832]
[1725585504740,0.50692519,56315.0,56314.0,0.1111832]
[1725585504984,0.86207019,56315.0,56314.0,0.1025]
[1725585505435,0.86207019,56315.0,56314.0,0.11119695]
[1725585505436,0.86205864,56315.0,56314.0,0.11119695]
[1725585505873,0.87541179,56315.0,56314.0,0.11119695]
[1725585506609,0.87541179,56315.0,56314.0,0.0251]
[1725585507007,0.87541179,56315.0,56314.0,0.03378986]
[1725585507233,1.23055679,56315.0,56314.0,0.025]
[1725585507439,2.16393379,56315.0,56314.0,0.03368986]
[1725585507640,0.98396079,56315.0,56314.0,0.025]
[1725585507866,0.87541179,56315.0,56314.0,0.025]
[1725585508257,0.87541179,56315.0,56314.0,0.012]
[1725585508258,0.90324416,56315.0,56314.0,0.012]
[1725585508466,0.177582,56312.0,56311.0,0.0001]
[1725585508670,0.22430056,56312.0,56311.0,0.0001]
[1725585508877,0.57946456,56312.0,56311.0,0.00878986]
[1725585509256,0.22429983,56312.0,56311.0,0.00878986]
[1725585509480,0.06006343,56312.0,56311.0,0.68544486]
[1725585509679,0.04671028,56312.0,56311.0,0.68544486]
[1725585509880,0.04671028,56312.0,56311.0,1.04061486]
[1725585510339,0.22429228,56312.0,56311.0,0.10018986]
[1725585510568,0.03002827,56312.0,56311.0,0.10018986]
[1725585510773,0.03002827,56312.0,56311.0,0.27777486]
[1725585511188,0.03002827,56312.0,56311.0,0.29077486]
[1725585511398,0.03002827,56312.0,56311.0,0.08618986]
[1725585511602,0.0133456,56312.0,56311.0,0.08618986]
[1725585511807,0.0133456,56312.0,56311.0,0.09218986]
[1725585512004,0.5460916,56312.0,56311.0,0.09218986]
[1725585512239,0.5460916,56312.0,56311.0,0.09208986]
[1725585512360,0.9012556,56312.0,56311.0,0.09808986]
[1725585512561,0.9012556,56312.0,56311.0,0.0834]
[1725585513116,0.9012556,56312.0,56311.0,0.0824]
[1725585513346,0.9012556,56312.0,56311.0,0.0904]
[1725585513810,0.9012556,56312.0,56311.0,0.09109351]
[1725585514017,0.9012556,56312.0,56311.0,0.09809351]
[1725585514518,0.9012556,56312.0,56311.0,0.09309351]
[1725585514988,0.9012556,56312.0,56311.0,0.09809351]
[1725585515462,0.9012556,56312.0,56311.0,0.09819351]
[1725585515463,0.5460916,56312.0,56311.0,0.09819351]
[1725585515698,0.5460916,56312.0,56311.0,0.0895]
[1725585515931,0.5460916,56312.0,56311.0,0.09820526]
[1725585516893,0.1909276,56312.0,56311.0,0.09820526]
[1725585518078,0.19093239,56312.0,56311.0,0.09820526]
[1725585518554,0.54609639,56312.0,56311.0,0.09820526]
[1725585518786,0.01335039,56312.0,56311.0,0.09820526]
[1725585519028,0.19093239,56312.0,56311.0,0.09820526]
[1725585520028,0.01335039,56312.0,56311.0,0.09820526]
[1725585520270,0.19093239,56312.0,56311.0,0.09820526]
[1725585520575,0.01335039,56312.0,56311.0,0.27579026]
[1725585520744,0.01335039,56312.0,56311.0,0.09820526]
[1725585521408,0.19093239,56312.0,56311.0,0.09820526]
[1725585521840,0.01335039,56312.0,56311.0,0.09983726]
[1725585522284,0.01335039,56312.0,56311.0,0.27742226]
[1725585522494,0.01335039,56312.0,56311.0,0.63259226]
[1725585523411,0.01335039,56312.0,56311.0,1.05056226]
[1725585523626,0.01335039,56312.0,56311.0,1.40573226]
[1725585526383,0.19093239,56312.0,56311.0,0.16263726]
[1725585526629,0.01335039,56312.0,56311.0,0.16263726]
[1725585527310,0.01335039,56312.0,56311.0,0.34022226]
[1725585527534,0.01335039,56312.0,56311.0,0.09983726]
[1725585527535,0.54609639,56312.0,56311.0,0.09983726]
[1725585527759,0.19093239,56312.0,56311.0,0.09983726]
[1725585528459,0.54609639,56312.0,56311.0,0.02233726]
[1725585528685,0.90126039,56312.0,56311.0,0.02233726]
[1725585530111,1.243074,56312.0,56311.0,0.02233726]
[1725585530344,1.78367959,56312.0,56311.0,0.02233726]
[1725585530559,1.81031295,56312.0,56311.0,0.013632]
[1725585530784,1.73041289,56312.0,56311.0,0.013632]
[1725585531018,2.3020103,56312.0,56311.0,0.013632]
[1725585531258,2.32864366,56312.0,56311.0,0.008632]
[1725585531482,2.32864366,56312.0,56311.0,0.001632]
[1725585531483,2.19747689,56312.0,56311.0,0.001632]
[1725585531699,2.19947689,56312.0,56311.0,0.001632]
[1725585531935,2.35727701,56312.0,56311.0,0.001632]
[1725585532193,2.35927701,56312.0,56311.0,0.001632]
[1725585532657,2.25367394,56312.0,56311.0,0.001632]
[1725585532910,2.25367394,56312.0,56305.0,0.001628]
[1725585532911,1.971005,56306.0,56305.0,0.001628]
[1725585533133,1.971005,56306.0,56304.0,0.001628]
[1725585533134,0.553912,56305.0,56304.0,0.001628]
[1725585533376,6.769536,56305.0,56304.0,0.001628]
[1725585533619,7.17213245,56305.0,56304.0,0.001628]
[1725585534774,4.86368245,56305.0,56304.0,0.001628]
[1725585534997,2.86942845,56305.0,56304.0,0.001628]
[1725585535207,2.83922545,56305.0,56304.0,0.001628]
[1725585535663,2.87809,56305.0,56304.0,0.002628]
[1725585535926,3.01102949,56305.0,56304.0,0.001628]
[1725585536141,3.01102752,56305.0,56304.0,0.001628]
[1725585536369,2.88799,56305.0,56304.0,0.001628]
[1725585536820,2.87464211,56305.0,56304.0,0.001628]
[1725585537036,3.03291961,56305.0,56304.0,0.002628]
[1725585537248,2.90408306,56305.0,56304.0,0.002628]
[1725585537473,2.98235292,56305.0,56304.0,0.002628]
[1725585537692,2.86988306,56305.0,56304.0,0.002628]
[1725585537908,2.95658679,56305.0,56304.0,0.002628]
[1725585538098,2.95857495,56305.0,56304.0,0.002628]
[1725585538328,2.91173439,56305.0,56304.0,0.001628]
[1725585538560,2.90980628,56305.0,56304.0,0.001628]
[1725585538792,2.90980628,56305.0,56287.0,0.1511]
[1725585538793,0.177657,56288.0,56287.0,0.1511]
[1725585539019,0.54631295,56288.0,56287.0,0.15988805]
[1725585539236,0.01334095,56288.0,56287.0,0.15988805]
[1725585539459,0.19099795,56288.0,56287.0,0.15988805]
[1725585539933,0.177657,56288.0,56287.0,0.15988805]
[1725585540156,0.19099448,56288.0,56287.0,0.15988805]
[1725585540415,0.01333748,56288.0,56287.0,0.16198805]
[1725585540640,0.01333748,56288.0,56287.0,1.05029005]
[1725585540854,0.177627,56298.0,56294.0,0.177636]
[1725585541079,0.17763,56297.0,56295.0,0.1511]
[1725585541351,0.177632,56296.0,56295.0,0.15998945]
[1725585541574,0.19097578,56296.0,56295.0,0.15998945]
[1725585541801,0.90150578,56296.0,56295.0,0.15998945]
[1725585542280,1.387047,56296.0,56295.0,0.0837]
[1725585542500,1.40039085,56296.0,56295.0,0.09258877]
[1725585542716,1.40239085,56296.0,56295.0,0.0837]
[1725585543377,1.40039085,56296.0,56295.0,0.0837]
[1725585543653,1.40439085,56296.0,56295.0,0.0837]
[1725585544090,1.41039085,56296.0,56295.0,0.0837]
[1725585544555,1.43520937,56296.0,56295.0,0.0837]
[1725585544775,1.41039085,56296.0,56295.0,0.0837]
[1725585544988,1.40639085,56296.0,56295.0,0.0837]
[1725585545442,0.20097585,56296.0,56295.0,0.0837]
[1725585545667,0.01,56296.0,56295.0,0.684106]
[1725585545886,0.01,56296.0,56295.0,1.039377]
[1725585546117,0.01,56296.0,56295.0,1.04826858]
[1725585546338,0.01935128,56296.0,56295.0,1.40353958]
[1725585546564,0.01535128,56296.0,56295.0,1.40353958]
[1725585547019,0.007,56296.0,56295.0,1.40353958]
[1725585547252,0.002,56296.0,56295.0,1.42653958]
[1725585547503,0.003,56296.0,56295.0,1.42653958]
[1725585547726,0.003,56296.0,56295.0,1.78181058]
[1725585547958,0.001,56296.0,56295.0,1.78181058]
[1725585548432,0.002,56296.0,56295.0,1.78781058]
[1725585548921,0.001,56296.0,56295.0,1.78181058]
[1725585549163,0.000816,56304.0,56303.0,1.39447]
[1725585549406,0.000816,56304.0,56303.0,1.42632684]
[1725585550601,0.001816,56304.0,56303.0,1.04910684]
[1725585551078,0.000816,56304.0,56303.0,1.40332684]
[1725585551447,0.001816,56304.0,56303.0,1.40432684]
[1725585551552,0.001816,56304.0,56303.0,1.40532684]
[1725585552024,0.001816,56304.0,56303.0,1.40432684]
[1725585552249,0.001816,56304.0,56303.0,1.41632684]
[1725585553441,0.01516417,56304.0,56303.0,1.41632684]
[1725585553679,0.002816,56304.0,56303.0,1.42632684]
[1725585553934,0.01516441,56304.0,56303.0,0.35066684]
[1725585554165,0.01516441,56304.0,56303.0,0.70588684]
[1725585554398,0.01616441,56304.0,56303.0,0.71388684]
[1725585554848,0.01616441,56304.0,56303.0,1.42432684]
[1725585555068,0.002816,56304.0,56303.0,1.42432684]
[1725585557793,0.01616502,56304.0,56303.0,1.42432684]
[1725585559203,0.002816,56304.0,56303.0,1.42432684]
[1725585559446,0.01616615,56304.0,56303.0,1.42432684]
[1725585559679,0.002816,56304.0,56303.0,1.42432684]
[1725585560116,0.01616615,56304.0,56303.0,1.42432684]
[1725585563053,0.01616727,56304.0,56303.0,1.42432684]
[1725585564654,0.01616727,56304.0,56303.0,2.14891]
[1725585564655,0.002816,56304.0,56303.0,2.14891]
[1725585564879,0.002816,56304.0,56303.0,1.83242094]
[1725585565117,0.002816,56304.0,56303.0,1.93242094]
[1725585565830,0.002816,56304.0,56303.0,1.93442094]
[1725585566791,0.000814,56315.0,56314.0,1.746679]
[1725585567024,0.000814,56315.0,56314.0,1.77837905]
[1725585568670,0.002814,56315.0,56314.0,1.77837905]
[1725585569393,0.0060961,56337.0,56314.0,1.77837905]
[1725585569394,0.0060961,56337.0,56336.0,0.0822]
[1725585569634,0.0060961,56337.0,56336.0,0.259706]
[1725585569884,0.01944494,56337.0,56336.0,0.97838428]
[1725585570118,0.0060961,56337.0,56336.0,0.97838428]
[1725585570346,0.01944494,56337.0,56336.0,0.97838428]
[1725585570688,0.0060961,56337.0,56336.0,0.97838428]
[1725585570907,0.01944314,56337.0,56336.0,0.97838428]
[1725585571130,0.01944314,56337.0,56336.0,0.98638428]
[1725585571579,0.0194432,56337.0,56336.0,0.98638428]
[1725585572057,0.01505156,56337.0,56336.0,1.35039628]
[1725585572289,0.00170446,56337.0,56336.0,1.35039628]
[1725585573216,0.00170446,56337.0,56336.0,1.34239628]
[1725585573667,0.27398428,56348.0,56337.0,0.355004]
[1725585573901,0.20529197,56347.0,56337.0,0.355004]
[1725585574129,0.20529197,56347.0,56344.0,0.177479]
[1725585574130,0.02781797,56347.0,56344.0,0.177479]
[1725585574594,0.02781797,56347.0,56343.0,0.354967]
[1725585574595,0.04116452,56347.0,56343.0,0.177483]
[1725585574857,0.01334655,56346.0,56344.0,0.17748]
[1725585575082,0.01334655,56346.0,56344.0,0.1859642]
[1725585575552,0.01334655,56346.0,56345.0,0.259578]
[1725585575783,0.01334655,56346.0,56345.0,0.0822]
[1725585576009,0.02781797,56347.0,56346.0,0.177574]
[1725585576248,0.57357845,56347.0,56346.0,0.0001]
[1725585576699,0.57357845,56347.0,56346.0,0.0085842]
[1725585576927,0.57357845,56347.0,56346.0,0.0001]
[1725585577151,0.57757845,56347.0,56346.0,0.0085842]
[1725585577390,0.56423197,56347.0,56346.0,0.0001]
[1725585577625,0.93264225,56347.0,56346.0,0.0084842]
[1725585577837,0.93264225,56347.0,56337.0,0.355004]
[1725585577838,0.04528525,56347.0,56337.0,0.177501]
[1725585578071,0.04528525,56347.0,56331.0,0.52650515]
[1725585578072,0.354987,56340.0,56339.0,0.0001]
[1725585578337,0.177509,56335.0,56334.0,0.0001]
[1725585578520,0.532511,56337.0,56336.0,0.0001]
[1725585578775,0.19085074,56337.0,56336.0,0.0001]
[1725585578988,0.01334774,56337.0,56336.0,0.0001]
[1725585579205,0.01334774,56337.0,56336.0,0.177606]
[1725585579418,0.354976,56342.0,56336.0,0.177606]
[1725585579419,0.177494,56340.0,56337.0,0.177501]
[1725585579671,0.177494,56340.0,56336.0,0.355112]
[1725585579672,0.01334768,56337.0,56336.0,1.03063]
[1725585580130,0.00082,56349.0,56338.0,0.3551]
[1725585580359,0.17749,56341.0,56340.0,0.0001]
[1725585580580,0.19083686,56341.0,56340.0,0.0001]
[1725585581032,0.19083686,56341.0,56337.0,0.0001]
[1725585581033,0.354987,56340.0,56337.0,0.0001]
[1725585581272,0.354987,56340.0,56322.0,0.365097]
[1725585581273,0.177512,56334.0,56333.0,0.0001]
[1725585581510,0.54588386,56334.0,56333.0,0.0001]
[1725585581695,0.01334686,56334.0,56333.0,0.177615]
[1725585581939,0.01334686,56334.0,56333.0,0.00857216]
[1725585582444,0.01334686,56334.0,56333.0,0.54041816]
[1725585582667,0.1775,56338.0,56335.0,0.177507]
[1725585582887,0.01334827,56337.0,56335.0,0.177507]
[1725585583112,0.177503,56337.0,56336.0,0.0094519]
[1725585583339,0.90086353,56337.0,56336.0,0.0093519]
[1725585583601,0.54585753,56337.0,56336.0,0.000932]
[1725585583832,0.19085153,56337.0,56336.0,0.000932]
[1725585584059,0.19085153,56337.0,56336.0,0.0088519]
[1725585584287,0.19085153,56337.0,56336.0,0.0087519]
[1725585584756,0.01334853,56337.0,56336.0,0.0086519]
[1725585584971,0.01334853,56337.0,56336.0,0.6841699]
[1725585585212,0.177494,56340.0,56337.0,0.177502]
[1725585585653,0.1775,56338.0,56336.0,0.147232]
[1725585585872,0.01334792,56337.0,56336.0,0.68175]
[1725585586091,0.354965,56344.0,56339.0,0.177495]
[1725585586308,0.354965,56344.0,56338.0,0.177499]
[1725585586309,0.17749,56342.0,56338.0,0.177499]
[1725585586496,0.02782147,56339.0,56338.0,0.177499]
[1725585586756,0.04116924,56339.0,56338.0,0.177499]
[1725585586976,0.04116924,56339.0,56338.0,0.532499]
[1725585587407,0.04116924,56339.0,56338.0,0.887499]
[1725585587627,0.02782147,56339.0,56338.0,0.887499]
[1725585587864,0.041169,56339.0,56338.0,0.887499]
[1725585588105,0.041169,56339.0,56338.0,1.242499]
[1725585588106,0.02782147,56339.0,56338.0,1.242499]
[1725585588322,0.365621,56351.0,56338.0,0.355]
[1725585588549,0.177472,56347.0,56344.0,0.17748]
[1725585588768,0.177475,56346.0,56343.0,0.177483]
[1725585588981,0.01334663,56345.0,56343.0,0.354967]
[1725585589197,0.01334663,56345.0,56344.0,0.079]
[1725585589654,0.19082482,56345.0,56342.0,0.177486]
[1725585590010,0.01334682,56344.0,56342.0,0.177486]
[1725585590110,0.01334682,56344.0,56341.0,0.35498]
[1725585590335,0.01334682,56343.0,56342.0,0.177487]
[1725585590539,0.01334682,56344.0,56342.0,0.177487]
[1725585590762,0.01334682,56343.0,56342.0,0.177487]
[1725585591233,0.01334682,56343.0,56338.0,0.355996]
[1725585591234,0.532489,56339.0,56338.0,0.001]
[1725585591475,0.90082882,56339.0,56338.0,0.001]
[1725585591937,0.887515,56337.0,56336.0,0.000232]
[1725585592175,0.90086182,56337.0,56336.0,0.000232]
[1725585593572,0.90086182,56337.0,56336.0,0.331538]
[1725585593573,0.01334682,56337.0,56336.0,0.331538]
[1725585593839,0.01334682,56337.0,56336.0,0.68655]
[1725585594054,0.01334682,56337.0,56336.0,1.041562]
[1725585594528,0.532456,56343.0,56338.0,0.354995]
[1725585594741,0.2053021,56345.0,56342.0,0.177484]
[1725585594971,0.177481,56344.0,56342.0,0.177484]
[1725585595187,0.01334681,56343.0,56342.0,0.177484]
[1725585595635,0.01334681,56343.0,56342.0,0.617658]
[1725585595849,0.19583081,56343.0,56342.0,0.0852]
[1725585596066,0.19583081,56343.0,56340.0,0.177492]
[1725585596292,0.355779,56344.0,56340.0,0.177492]
[1725585596293,0.01334681,56342.0,56341.0,0.177488]
[1725585596723,0.01334681,56342.0,56341.0,0.532469]
[1725585596941,0.01334681,56342.0,56341.0,0.54087406]
[1725585597390,0.01334681,56342.0,56341.0,0.89585506]
[1725585597668,0.01334681,56342.0,56341.0,1.42763606]
[1725585598617,0.01634681,56342.0,56341.0,1.42763606]
[1725585598851,0.01334681,56342.0,56341.0,1.42763606]
[1725585599312,0.01434681,56342.0,56341.0,1.45363606]
[1725585599989,0.01434681,56342.0,56341.0,1.80861706]
[1725585601139,0.01434471,56342.0,56341.0,1.79561706]
[1725585601368,0.01434471,56342.0,56341.0,1.44063606]
[1725585601602,0.01334471,56342.0,56341.0,1.44163606]
[1725585601851,0.01334471,56342.0,56341.0,1.79661706]
[1725585602074,0.01434471,56342.0,56341.0,1.82061706]
[1725585602520,0.01334471,56342.0,56341.0,1.79261706]
[1725585602772,0.01434471,56342.0,56341.0,1.80661706]
[1725585603008,0.001,56342.0,56341.0,1.82061706]
[1725585603453,0.01434392,56342.0,56341.0,1.82061706]
[1725585604124,0.01434392,56342.0,56341.0,1.79661706]
[1725585604364,0.01434392,56342.0,56341.0,1.44163606]
[1725585604589,0.01434392,56342.0,56341.0,1.45563606]
[1725585606046,0.01434392,56342.0,56341.0,1.10065506]
[1725585608306,0.01515992,56342.0,56341.0,1.10065506]
[1725585608755,0.01515992,56342.0,56341.0,1.45563606]
[1725585609775,0.001816,56342.0,56341.0,1.45563606]
[1725585610009,0.01516054,56342.0,56341.0,1.45563606]
[1725585610233,0.001816,56342.0,56341.0,1.82261706]
[1725585610921,0.001816,56342.0,56341.0,1.82061706]
[1725585611619,0.001816,56342.0,56341.0,1.82261706]
[1725585613073,0.001816,56342.0,56341.0,1.82061706]
[1725585613301,0.001816,56342.0,56341.0,1.82261706]
[1725585613761,0.000816,56344.0,56343.0,1.91341551]
[1725585614000,0.000816,56344.0,56343.0,2.45658351]
[1725585614240,0.000816,56344.0,56343.0,2.46684116]
[1725585614737,0.000816,56344.0,56343.0,2.46484116]
[1725585614953,0.000816,56344.0,56343.0,2.47884116]
[1725585615417,0.001816,56344.0,56343.0,1.91001365]